fUST/lending_fUST_20260131
["ID","MTS","AMOUNT","RATE_DAILY","PERIOD"]
[404087171,1769802639348,-152.52650043,0.000196,2]
[404087172,1769802639358,-388.48572575,0.00019724,2]
[404087188,1769802640668,-5087.46472633,0.00019587,2]
[404087190,1769802640680,-168.97960004,0.00019587,2]
[404087191,1769802640690,-111.51427425,0.00019724,2]
[404087192,1769802640700,-53.82202571,0.00019724,2]
[404087193,1769802640866,-446.17797429,0.00019724,2]
[404087194,1769802640881,-253.37170978,0.00019724,2]
[404087195,1769802640890,-126.14654543,0.00019724,2]
[404087196,1769802640902,-373.85345457,0.00019724,2]
[404087197,1769802640911,-500.0,0.00019724,2]
[404087198,1769802640921,-500.0,0.00019724,2]
[404087199,1769802640930,-601.86770743,0.00019724,2]
[404087200,1769802640940,-500.0,0.00019724,2]
[404087201,1769802640950,-500.0,0.00019724,2]
[404087202,1769802640959,-500.0,0.00019861,2]
[404087203,1769802640969,-211.49049527,0.00019861,2]
[404087204,1769802640982,-288.50950473,0.00019861,2]
[404087205,1769802640991,-500.0,0.00019861,2]
[404087206,1769802641000,-12.5452723,0.00019861,2]
[404087238,1769802643917,-487.4547277,0.00019861,2]
[404087240,1769802643926,-474.6457749,0.00019861,2]
[404087246,1769802643971,-25.3542251,0.00019861,2]
[404087248,1769802643982,-164.98871269,0.00019861,2]
[404087250,1769802643991,-450.0,0.00019861,2]
[404087252,1769802644000,-500.0,0.00019861,2]
[404087254,1769802644010,-1041.66666667,0.00019868,2]
[404087256,1769802644020,-1599.87039554,0.00019994,7]
[404087258,1769802644031,-400.12960446,0.00019994,7]
[404087260,1769802644040,-500.0,0.00019998,2]
[404087262,1769802644049,-500.0,0.00019998,2]
[404087264,1769802644058,-400.66953665,0.00019998,2]
[404087266,1769802644068,-500.0,0.00019998,2]
[404087268,1769802644077,-500.0,0.00019998,2]
[404087270,1769802644086,-500.0,0.00019998,2]
[404087272,1769802644095,-500.0,0.00019999,2]
[404087274,1769802644104,-500.0,0.00019999,2]
[404087276,1769802644114,-245.05641761,0.00019999,2]
[404087278,1769802644123,-500.0,0.00019999,2]
[404087280,1769802644132,-105.958705,0.00019999,2]
[404087363,1769802646610,-207.95185693,9.3e-05,2]
[404087365,1769802646620,-394.041295,0.00019999,2]
[404087366,1769802646629,-500.0,0.00019999,2]
[404087368,1769802646639,-500.0,0.00019999,2]
[404087369,1769802646649,-500.0,0.00019999,2]
[404087370,1769802646659,-500.0,0.00019999,2]
[404087371,1769802646668,-179.13377455,0.00019999,2]
[404087372,1769802646677,-334.94188757,0.00019999,2]
[404087373,1769802646689,-165.05811243,0.00019999,2]
[404087374,1769802646698,-335.62107763,0.00019999,2]
[404087375,1769802646708,-1106.35721903,0.0002,2]
[404087376,1769802646719,-3012.72251891,0.0002,2]
[404087377,1769802646773,-14068.06331875,0.0002,2]
[404087379,1769802719468,1374.0,0.00030137,120]
[404087620,1769803228012,-943.5,9.115e-05,2]
[404087621,1769803247099,5000.0,9e-05,2]
[404087622,1769803269452,4687.16325573,9e-05,2]
[404087623,1769803275181,-500.0,9.115e-05,2]
[404087624,1769803275202,-500.0,9.115e-05,2]
[404087625,1769803275224,-89.4,9.115e-05,2]
[404087652,1769803803111,99.88405375,9e-05,2]
[404087653,1769803803137,57.48594625,9e-05,2]
[404087669,1769803831577,-157.37,9.1e-05,2]
[404087670,1769803831590,-157.37,9.1e-05,2]
[404087671,1769803831600,-126.87834422,9.115e-05,2]
[404087672,1769803831610,-5.34665578,9.115e-05,2]
[404087673,1769803831624,-296.37,9.115e-05,2]
[404087674,1769803831635,-246.28334422,9.115e-05,2]
[404087675,1769803831648,-157.37,9.2e-05,2]
[404087676,1769803831659,-300.0,9.296e-05,2]
[404087677,1769803831670,-300.0,9.296e-05,2]
[404087678,1769803831679,-300.0,9.296e-05,2]
[404087679,1769803831689,-27.21174667,9.296e-05,2]
[404087700,1769803837710,-272.78825333,9.296e-05,2]
[404087701,1769803837720,-300.0,9.296e-05,2]
[404087702,1769803837730,-300.0,9.296e-05,2]
[404087703,1769803837740,-300.0,9.296e-05,2]
[404087704,1769803837749,-300.0,9.296e-05,2]
[404087705,1769803837759,-300.0,9.296e-05,2]
[404087706,1769803837769,-300.0,9.296e-05,2]
[404087707,1769803837778,-232.44529098,9.296e-05,2]
[404087710,1769803837790,-67.55470902,9.296e-05,2]
[404087711,1769803837799,-300.0,9.296e-05,2]
[404087713,1769803837808,-300.0,9.296e-05,2]
[404087715,1769803837818,-300.0,9.296e-05,2]
[404087717,1769803837827,-300.0,9.296e-05,2]
[404087718,1769803837837,-207.95185693,9.3e-05,2]
[404087719,1769803837846,-157.37,9.3e-05,2]
[404087720,1769803837856,-157.37,9.3e-05,2]
[404087721,1769803837867,-157.37,9.4e-05,2]
[404087722,1769803837876,-600.0,9.481e-05,2]
[404087723,1769803837886,-157.37,9.5e-05,2]
[404087724,1769803837896,-157.37,9.5e-05,2]
[404087725,1769803837906,-157.37,9.6e-05,2]
[404087726,1769803837915,-157.37,9.7e-05,2]
[404087727,1769803837929,-157.37,9.7e-05,2]
[404087728,1769803837939,-157.37,9.8e-05,2]
[404087729,1769803837950,-157.37,9.9e-05,2]
[404087730,1769803837960,-720.0,0.00010429,2]
[404087731,1769803837970,-177.0,0.00011206,2]
[404087732,1769803837980,-864.0,0.00011472,2]
[404087733,1769803837990,-1000.0,0.00012619,2]
[404087734,1769803838000,-204.0,0.00013206,2]
[404087735,1769803838010,-334.94188757,0.00013698,2]
[404087736,1769803838020,-500.0,0.00013698,2]
[404087737,1769803838030,-500.0,0.00013698,2]
[404087738,1769803838039,-500.0,0.00013698,2]
[404087739,1769803838050,-500.0,0.00013698,2]
[404087740,1769803838060,-500.0,0.00013699,2]
[404087741,1769803838070,-357.38498917,0.00013699,2]
[404087742,1769803838080,-507.49218995,0.00013699,2]
[404087743,1769803838091,-500.0,0.00013699,2]
[404087744,1769803838100,-500.0,0.00013699,2]
[404087745,1769803838109,-500.0,0.00013699,2]
[404087746,1769803838119,-334.52875079,0.00013699,2]
[404087747,1769803838128,-501.67094293,0.00013699,2]
[404087748,1769803838138,-500.0,0.00013699,2]
[404087749,1769803838148,-500.0,0.00013699,2]
[404087750,1769803838157,-1000.0,0.00013881,2]
[404087751,1769803838167,-244.0,0.00013881,2]
[404087752,1769803838177,-573.17506955,0.00013971,2]
[404087753,1769803838186,-343.51062108,0.00014247,2]
[404087754,1769803838196,-500.0,0.00014247,2]
[404087755,1769803838207,-153.845326,0.00014247,2]
[404087756,1769803838217,-500.0,0.00014247,2]
[404087757,1769803838226,-502.16076125,0.00014247,2]
[404087758,1769803838236,-200.29105694,0.00014247,2]
[404087759,1769803838252,-301.84103097,0.00014247,2]
[404087760,1769803838262,-231.0,0.00015206,2]
[404087761,1769803838273,-500.0,0.00015268,2]
[404087762,1769803838283,-500.0,0.00015268,2]
[404087763,1769803838292,-274.12878979,0.00015268,2]
[404087770,1769803839768,-225.87121021,0.00015268,2]
[404087772,1769803839778,-500.0,0.00015268,2]
[404087774,1769803839787,-500.0,0.00015268,2]
[404087775,1769803839796,-500.0,0.00015268,2]
[404087776,1769803839807,-500.0,0.00015268,2]
[404087777,1769803839817,-500.0,0.00015268,2]
[404087778,1769803839828,-500.0,0.00015268,2]
[404087779,1769803839838,-500.0,0.00015268,2]
[404087780,1769803839847,-500.0,0.00015268,2]
[404087781,1769803839858,-496.03602469,0.00015268,2]
[404087782,1769803839867,-500.0,0.00015268,2]
[404087783,1769803839876,-500.0,0.00015268,2]
[404087784,1769803839886,-500.0,0.00015268,2]
[404087785,1769803839895,-500.0,0.00015268,2]
[404087786,1769803839905,-500.0,0.00015268,2]
[404087787,1769803839915,-500.0,0.00015268,2]
[404087788,1769803839924,-545.34798633,0.00015268,2]
[404087789,1769803839934,-500.0,0.00015268,2]
[404087790,1769803839943,-500.0,0.00015268,2]
[404087791,1769803839952,-500.0,0.00015268,2]
[404087793,1769803839961,-534.42263049,0.00015268,2]
[404087794,1769803839970,-500.0,0.00015268,2]
[404087795,1769803839979,-500.0,0.00015268,2]
[404087796,1769803839988,-500.0,0.00015268,2]
[404087797,1769803839997,-500.0,0.00015268,2]
[404087798,1769803840006,-500.0,0.00015268,2]
[404087799,1769803840014,-500.0,0.00015268,2]
[404087800,1769803840023,-500.0,0.00015268,2]
[404087801,1769803840032,-651.91881549,0.00015268,2]
[404087802,1769803840041,-500.0,0.00015268,2]
[404087803,1769803840051,-500.0,0.00015268,2]
[404087804,1769803840061,-500.0,0.00015268,2]
[404087805,1769803840070,-500.0,0.00015268,2]
[404087806,1769803840079,-500.0,0.00015268,2]
[404087807,1769803840089,-1000.0,0.00015269,2]
[404087808,1769803840099,-492.0,0.00015269,2]
[404087809,1769803840108,-179.0,0.00016373,2]
[404087810,1769803840117,-1000.0,0.00016796,2]
[404087811,1769803840126,-791.0,0.00016796,2]
[404087812,1769803840135,-352.76784368,0.00017147,2]
[404087813,1769803840145,-283.36517088,0.00017147,2]
[404087814,1769803840154,-1132.32722282,0.00017147,2]
[404087815,1769803840163,-258.0,0.00017206,2]
[404087816,1769803840172,-1000.0,0.00018476,2]
[404087817,1769803840181,-1000.0,0.00018476,2]
[404087818,1769803840190,-285.0,0.00019206,2]
[404087819,1769803840199,-179.0,0.00019373,2]
[404087820,1769803840334,-500.0,0.00019724,2]
[404087821,1769803840352,-500.0,0.00019724,2]
[404087822,1769803840362,-500.0,0.00019724,2]
[404087823,1769803840371,-500.0,0.00019724,2]
[404087824,1769803840381,-281.113,0.00019725,2]
[404087825,1769803840390,-293.71770988,0.00019726,2]
[404087826,1769803840399,-2000.0,0.00019775,7]
[404087827,1769803840408,-500.0,0.00019861,2]
[404087828,1769803840418,-500.0,0.00019861,2]
[404087829,1769803840427,-500.0,0.00019861,2]
[404087830,1769803840437,-500.0,0.00019861,2]
[404087831,1769803840446,-3129.1445785,0.00019891,2]
[404087832,1769803840456,-300.0,0.00019998,2]
[404087833,1769803840465,-500.0,0.00019998,2]
[404087834,1769803840475,-500.0,0.00019998,2]
[404087835,1769803840485,-500.0,0.00019998,2]
[404087836,1769803840495,-375.68884527,0.00019999,2]
[404087837,1769803840504,-205.80149029,0.00019999,2]
[404087838,1769803840513,-47373.70573748,0.0002,2]
[404087839,1769803840525,-1135.23247575,0.0002,2]
[404087889,1769803845845,-145485.34731351,0.0002,2]
[404087986,1769805035969,-1249.50691396,0.00015626,2]
[404087987,1769805035980,-514.69717787,0.00015626,2]
[404087988,1769805036030,-962.90483742,0.00015626,2]
[404087989,1769805036041,-809.67449951,0.00015626,2]
[404087990,1769805036052,-424.98544263,0.00015626,2]
[404088003,1769805037862,-1038.23112861,0.00015626,2]
[404088004,1769805037872,-646.0,0.00015626,2]
[404088005,1769805037881,-216.4629814,0.00016105,2]
[404088006,1769805037891,-179.0,0.00017462,2]
[404088007,1769805037900,-178.97294823,0.0001747,2]
[404088014,1769805040156,-2658.7350964,0.0001747,2]
[404088015,1769805040170,-5343.26321564,0.0001747,2]
[404088016,1769805040182,-177.0,0.00017865,2]
[404088017,1769805040193,-414.87561144,0.00018048,2]
[404088018,1769805040204,-303.10001604,0.000189,2]
[404088020,1769805040215,-1000.0,0.00018999,2]
[404088021,1769805040227,-757.2826507,0.00019638,2]
[404088022,1769805040239,-1041.66666667,0.0001969,2]
[404088023,1769805040251,-378.8694395,0.000197,2]
[404088024,1769805040263,-1000.0,0.00019724,2]
[404088025,1769805040273,-1000.0,0.00019724,2]
[404088026,1769805040286,-906.35431073,0.00019724,2]
[404088044,1769805043022,-3961.76887139,0.00017295,2]
[404088047,1769805043036,-93.64568927,0.00019724,2]
[404088049,1769805043047,-1000.0,0.00019724,2]
[404088051,1769805043058,-475.0,0.00019724,2]
[404088053,1769805043069,-500.0,0.00019726,2]
[404088056,1769805043080,-500.0,0.00019726,2]
[404088058,1769805043090,-500.0,0.00019726,2]
[404088060,1769805043102,-500.0,0.00019863,2]
[404088062,1769805043112,-486.7629459,0.00019863,2]
[404088064,1769805043124,-13.2370541,0.00019863,2]
[404088067,1769805043136,-500.0,0.00019863,2]
[404088069,1769805043146,-204.0,0.00019865,2]
[404088071,1769805043157,-206.59,0.0001999,3]
[404088073,1769805043168,-439.21981925,0.0001999,3]
[404088099,1769805046177,-180.57018075,0.0001999,3]
[404088102,1769805046189,-281.6025145,0.00019998,2]
[404088104,1769805046200,-505.03866515,0.00019998,2]
[404088106,1769805046211,-500.0,0.00019998,2]
[404088108,1769805046223,-196.28201911,0.00019998,2]
[404088111,1769805046237,-431.70896039,0.00019998,2]
[404088113,1769805046248,-224.89,0.00019999,2]
[404088115,1769805046259,-500.0,0.00019999,2]
[404088118,1769805046271,-500.0,0.00019999,3]
[404088120,1769805046284,-500.0,0.00019999,4]
[404088123,1769805046294,-500.0,0.00019999,5]
[404088125,1769805046304,-500.0,0.00019999,6]
[404088127,1769805046315,-500.0,0.00019999,7]
[404088129,1769805046324,-500.0,0.00019999,8]
[404088131,1769805046335,-500.0,0.00019999,9]
[404088133,1769805046345,-500.0,0.00019999,10]
[404088135,1769805046355,-500.0,0.00019999,11]
[404088138,1769805046366,-500.0,0.00019999,12]
[404088140,1769805046377,-500.0,0.00019999,13]
[404088142,1769805046389,-500.0,0.00019999,14]
[404088145,1769805046401,-500.0,0.00019999,15]
[404088147,1769805046412,-217.00326683,0.00019999,16]
[404088149,1769805046421,-415.41821725,0.0002,2]
[404088151,1769805046431,-237.93601152,0.0002,2]
[404088153,1769805046441,-500.0,0.0002,2]
[404088155,1769805046452,-62697.14590824,0.0002,2]
[404088203,1769805494441,9000.0,0.00030137,120]
[404088204,1769805577113,-107.0,0.00030137,120]
[404088205,1769805577151,-286.0,0.00030137,120]
[404088206,1769805577161,-107.0,0.00030137,120]
[404088207,1769805602197,171.72,9e-05,2]
[404088208,1769805645014,-393.0,0.00030137,120]
[404088209,1769805645042,-269.02115159,0.00030137,120]
[404088210,1769805645165,-275.95769682,0.00030137,120]
[404088211,1769805668104,-107.0,0.00030137,120]
[404088212,1769805668203,-621.59894242,0.00030137,120]
[404088213,1769805668283,-537.32111046,0.00030137,120]
[404088214,1769805668309,-82.75883666,0.00030137,120]
[404088215,1769805702035,-868.95148409,0.0003014,120]
[404088216,1769805702193,-200.0,0.000305,120]
[404088217,1769805702235,-31.04851591,0.000305,120]
[404088272,1769806125117,-168.95148409,0.000305,120]
[404088273,1769806125161,-30.09703182,0.000305,120]
[404088306,1769806231885,-1200.0,9.12e-05,2]
[404088308,1769806231895,-3546.75105703,9.121e-05,2]
[404088311,1769806231910,-1453.24894297,9.121e-05,2]
[404088313,1769806231920,-548.0,9.121e-05,2]
[404088315,1769806231930,-171.72,9.4e-05,2]
[404088317,1769806231940,-177.0,0.00011307,2]
[404088319,1769806231949,-204.0,0.00013307,2]
[404088321,1769806231958,-301.84103097,0.00013699,2]
[404088323,1769806231967,-231.0,0.00015307,2]
[404088325,1769806231977,-258.0,0.00017307,2]
[404088327,1769806231987,-207.95185693,0.00017462,2]
[404088329,1769806231996,-179.0,0.00017562,2]
[404088331,1769806232005,-1041.66666667,0.00019142,2]
[404088333,1769806232015,-168.0,0.00019219,2]
[404088336,1769806232025,-168.0,0.00019281,2]
[404088339,1769806232034,-180.0,0.00019306,2]
[404088342,1769806232043,-300.0,0.00019306,2]
[404088346,1769806232055,-285.0,0.00019307,2]
[404088349,1769806232064,-168.0,0.00019362,2]
[404088352,1769806232074,-168.0,0.0001938,2]
[404088355,1769806232083,-168.0,0.00019521,2]
[404088358,1769806232092,-382.60749695,0.0001954,2]
[404088362,1769806232104,-327.39250305,0.0001954,2]
[404088365,1769806232115,-168.0,0.00019606,2]
[404088368,1769806232124,-170.75959474,0.0001971,2]
[404088371,1769806232134,-38.79034985,0.00019726,2]
[404088373,1769806232145,-461.20965015,0.00019726,2]
[404088375,1769806232156,-293.78825277,0.00019726,2]
[404088377,1769806232165,-500.0,0.00019726,2]
[404088379,1769806232174,-350.92431522,0.00019726,2]
[404088410,1769806237997,-149.07568478,0.00019726,2]
[404088411,1769806238007,-500.0,0.00019726,2]
[404088412,1769806238017,-200.0,0.00019726,2]
[404088413,1769806238026,-200.0,0.00019726,2]
[404088414,1769806238035,-500.0,0.00019726,2]
[404088415,1769806238045,-500.0,0.00019726,2]
[404088416,1769806238054,-500.0,0.00019726,2]
[404088417,1769806238063,-500.0,0.00019726,2]
[404088418,1769806238072,-169.10603538,0.00019726,2]
[404088419,1769806238082,-168.0,0.00019745,2]
[404088420,1769806238091,-170.75959474,0.00019758,2]
[404088421,1769806238101,-2000.0,0.00019796,7]
[404088423,1769806238112,-2500.0,0.000198,2]
[404088424,1769806238122,-170.75959474,0.00019805,2]
[404088425,1769806238131,-593.75,0.00019807,3]
[404088426,1769806238141,-500.0,0.00019809,2]
[404088427,1769806238151,-500.0,0.00019809,2]
[404088428,1769806238160,-500.0,0.00019809,2]
[404088429,1769806238170,-500.0,0.00019809,2]
[404088430,1769806238179,-500.0,0.00019809,2]
[404088431,1769806238190,-500.0,0.00019809,2]
[404088432,1769806238200,-500.0,0.00019809,2]
[404088433,1769806238209,-500.0,0.00019809,2]
[404088434,1769806238219,-500.0,0.00019809,2]
[404088435,1769806238229,-500.0,0.00019809,2]
[404088436,1769806238239,-500.0,0.00019809,2]
[404088437,1769806238248,-500.0,0.00019809,2]
[404088438,1769806238259,-500.0,0.00019809,2]
[404088439,1769806238268,-500.0,0.00019809,2]
[404088440,1769806238278,-500.0,0.00019809,2]
[404088441,1769806238288,-500.0,0.00019809,2]
[404088442,1769806238299,-500.0,0.00019809,2]
[404088443,1769806238309,-250.37403979,0.00019809,2]
[404088444,1769806238318,-500.0,0.00019809,2]
[404088445,1769806238328,-500.0,0.00019809,2]
[404088446,1769806238339,-538.88534711,0.00019809,2]
[404088447,1769806238348,-377.40095956,0.00019809,2]
[404088448,1769806238358,-500.0,0.00019809,2]
[404088449,1769806238370,-500.0,0.00019809,2]
[404088450,1769806238380,-500.0,0.00019809,2]
[404088451,1769806238390,-500.0,0.00019809,2]
[404088452,1769806238400,-500.0,0.00019809,2]
[404088453,1769806238409,-500.0,0.00019809,2]
[404088455,1769806238419,-500.0,0.00019809,2]
[404088456,1769806238429,-500.0,0.00019809,2]
[404088457,1769806238439,-500.0,0.00019809,2]
[404088458,1769806238449,-500.0,0.00019809,2]
[404088460,1769806238459,-500.0,0.00019809,2]
[404088461,1769806238469,-500.0,0.00019809,2]
[404088463,1769806238480,-500.0,0.00019809,2]
[404088465,1769806238490,-500.0,0.00019809,2]
[404088467,1769806238500,-500.0,0.00019809,2]
[404088468,1769806238510,-500.0,0.00019809,2]
[404088470,1769806238520,-500.0,0.00019809,2]
[404088472,1769806238530,-500.0,0.00019809,2]
[404088474,1769806238540,-500.0,0.00019809,2]
[404088476,1769806238550,-254.96592461,0.00019809,2]
[404088478,1769806238563,-245.03407539,0.00019809,2]
[404088479,1769806238573,-500.0,0.00019809,2]
[404088480,1769806238583,-500.0,0.00019809,2]
[404088481,1769806238593,-500.0,0.00019809,2]
[404088482,1769806238606,-500.0,0.00019809,2]
[404088483,1769806238616,-500.0,0.00019809,2]
[404088484,1769806238626,-500.0,0.00019809,2]
[404088485,1769806238638,-194.70462891,0.00019809,2]
[404088486,1769806238647,-500.0,0.00019809,2]
[404088487,1769806238656,-500.0,0.00019809,2]
[404088488,1769806238667,-500.0,0.00019809,2]
[404088489,1769806238676,-500.0,0.00019809,2]
[404088490,1769806238687,-500.0,0.00019809,2]
[404088491,1769806238697,-500.0,0.00019809,2]
[404088492,1769806238706,-500.0,0.00019809,2]
[404088493,1769806238716,-500.0,0.00019809,2]
[404088494,1769806238725,-272.99591744,0.00019809,2]
[404088495,1769806238737,-227.00408256,0.00019809,2]
[404088496,1769806238747,-500.0,0.00019809,2]
[404088497,1769806238756,-124.10560799,0.00019809,2]
[404088498,1769806238768,-284.32999998,0.00019809,2]
[404088499,1769806238779,-91.56439203,0.00019809,2]
[404088500,1769806238788,-500.0,0.00019809,2]
[404088501,1769806238798,-500.0,0.00019809,2]
[404088502,1769806238807,-500.0,0.00019809,2]
[404088503,1769806238817,-500.0,0.00019809,2]
[404088504,1769806238828,-500.0,0.00019809,2]
[404088505,1769806238837,-500.0,0.00019809,2]
[404088506,1769806238847,-500.0,0.00019809,2]
[404088507,1769806238857,-500.0,0.00019809,2]
[404088508,1769806238867,-500.0,0.00019809,2]
[404088509,1769806238877,-500.0,0.00019809,2]
[404088510,1769806238887,-500.0,0.00019809,2]
[404088511,1769806238896,-500.0,0.00019809,2]
[404088512,1769806238906,-500.0,0.00019809,2]
[404088513,1769806238916,-500.0,0.00019809,2]
[404088514,1769806238926,-500.0,0.00019809,2]
[404088515,1769806238936,-500.0,0.00019809,2]
[404088516,1769806238945,-500.0,0.00019809,2]
[404088517,1769806238955,-500.0,0.00019809,2]
[404088518,1769806238964,-500.0,0.00019809,2]
[404088519,1769806238974,-500.0,0.00019809,2]
[404088520,1769806238983,-500.0,0.00019809,2]
[404088521,1769806238993,-500.0,0.00019809,2]
[404088522,1769806239002,-500.0,0.00019809,2]
[404088523,1769806239012,-500.0,0.00019809,2]
[404088524,1769806239022,-500.0,0.00019809,2]
[404088525,1769806239032,-500.0,0.00019809,2]
[404088526,1769806239041,-500.0,0.00019809,2]
[404088527,1769806239051,-500.0,0.00019809,2]
[404088528,1769806239062,-500.0,0.00019809,2]
[404088529,1769806239071,-500.0,0.00019809,2]
[404088530,1769806239082,-500.0,0.00019809,2]
[404088531,1769806239093,-500.0,0.00019809,2]
[404088532,1769806239102,-500.0,0.00019809,2]
[404088533,1769806239111,-500.0,0.00019809,2]
[404088534,1769806239120,-500.0,0.00019809,2]
[404088535,1769806239130,-500.0,0.00019809,2]
[404088536,1769806239140,-500.0,0.00019809,2]
[404088537,1769806239150,-500.0,0.00019809,2]
[404088538,1769806239160,-500.0,0.00019809,2]
[404088539,1769806239170,-500.0,0.00019809,2]
[404088540,1769806239179,-500.0,0.00019809,2]
[404088541,1769806239189,-500.0,0.00019809,2]
[404088542,1769806239198,-500.0,0.00019809,2]
[404088543,1769806239208,-500.0,0.00019809,2]
[404088544,1769806239218,-500.0,0.00019809,2]
[404088545,1769806239228,-500.0,0.00019809,2]
[404088546,1769806239237,-500.0,0.00019809,2]
[404088547,1769806239247,-500.0,0.00019809,2]
[404088548,1769806239256,-500.0,0.00019809,2]
[404088549,1769806239265,-349.64936357,0.00019809,2]
[404088550,1769806239275,-500.0,0.00019809,2]
[404088551,1769806239287,-500.0,0.00019809,2]
[404088552,1769806239300,-500.0,0.00019809,2]
[404088553,1769806239310,-500.0,0.00019809,2]
[404088554,1769806239320,-500.0,0.00019809,2]
[404088555,1769806239331,-500.0,0.00019809,2]
[404088556,1769806239343,-500.0,0.00019809,2]
[404088557,1769806239353,-500.0,0.00019809,2]
[404088558,1769806239364,-500.0,0.00019809,2]
[404088559,1769806239375,-500.0,0.00019809,2]
[404088560,1769806239384,-500.0,0.00019809,2]
[404088561,1769806239394,-500.0,0.00019809,2]
[404088562,1769806239404,-500.0,0.00019809,2]
[404088563,1769806239414,-500.0,0.00019809,2]
[404088564,1769806239424,-500.0,0.00019809,2]
[404088565,1769806239433,-500.0,0.00019809,2]
[404088566,1769806239444,-500.0,0.00019809,2]
[404088567,1769806239454,-500.0,0.00019809,2]
[404088568,1769806239464,-500.0,0.00019809,2]
[404088569,1769806239475,-500.0,0.00019809,2]
[404088570,1769806239484,-500.0,0.00019809,2]
[404088571,1769806239496,-500.0,0.00019809,2]
[404088572,1769806239635,-500.0,0.00019809,2]
[404088573,1769806239645,-500.0,0.00019809,2]
[404088574,1769806239655,-500.0,0.00019809,2]
[404088575,1769806239665,-500.0,0.00019809,2]
[404088576,1769806239675,-500.0,0.00019809,2]
[404088577,1769806239684,-500.0,0.00019809,2]
[404088578,1769806239694,-500.0,0.00019809,2]
[404088579,1769806239703,-500.0,0.00019809,2]
[404088580,1769806239713,-500.0,0.00019809,2]
[404088581,1769806239722,-500.0,0.00019809,2]
[404088582,1769806239731,-500.0,0.00019809,2]
[404088583,1769806239740,-300.0,0.00019809,2]
[404088584,1769806239750,-500.0,0.00019809,2]
[404088586,1769806239759,-500.0,0.00019809,2]
[404088588,1769806239768,-500.0,0.00019809,2]
[404088589,1769806239777,-500.0,0.00019809,2]
[404088590,1769806239787,-500.0,0.00019809,2]
[404088591,1769806239795,-500.0,0.00019809,2]
[404088592,1769806239805,-500.0,0.00019809,2]
[404088594,1769806239814,-500.0,0.00019809,2]
[404088596,1769806239823,-500.0,0.00019809,2]
[404088598,1769806239832,-500.0,0.00019809,2]
[404088599,1769806239841,-3287.37,0.0001981,2]
[404088600,1769806239850,-3287.37,0.0001981,2]
[404088601,1769806239859,-3287.37,0.0001981,2]
[404088602,1769806239868,-3287.37,0.0001981,2]
[404088603,1769806239878,-3287.37,0.0001981,2]
[404088604,1769806239887,-3287.37,0.0001981,2]
[404088605,1769806239896,-3287.37,0.0001981,2]
[404088606,1769806239905,-3287.37,0.0001981,2]
[404088608,1769806239914,-3287.37,0.0001981,2]
[404088609,1769806239923,-3287.37,0.0001981,2]
[404088610,1769806239932,-3287.37,0.0001981,2]
[404088611,1769806239941,-3287.37,0.0001981,2]
[404088612,1769806239951,-3287.37,0.0001981,2]
[404088613,1769806239959,-3287.37,0.0001981,2]
[404088614,1769806239968,-3287.37,0.0001981,2]
[404088616,1769806239978,-3287.37,0.0001981,2]
[404088618,1769806239987,-3287.37,0.0001981,2]
[404088620,1769806239996,-3287.37,0.0001981,2]